Cogmind - Beta 17 @@@ ROGUE MODE // 2026.08.11 @ 21:00:54 Player: Conwew Result: Destroyed self with Rocket Launcher Performance ------------- Evolutions (0) 0 Regions Visited (3) 600 Robots Destroyed (9) 45 Value Destroyed (378) 378 Prototype IDs (0) 0 Alien Tech Used (0) 0 Bonus (0) 0 TOTAL SCORE: 1023 Bonus ------- None Cogmind --------- Core Integrity 0/250 Matter 240/300 Energy 100/100 System Corruption 0% Temperature Cool (0) Movement Core (100) Ox1 Location -10/Subcaves Parts ------- > --- POWER (1) -------- (None) > --- PROPULSION (2) --- Subdweller Monowheel > --- UTILITY (2) ------ Disposable Heat Sink Visual Processing Unit > --- WEAPON (2) ------- Rocket Launcher > --- INVENTORY (5) ---- Wheel Subdweller Monowheel Huge Storage Unit Peak State ------------ > --- POWER ------------ Subdweller Power Source > --- PROPULSION ------- Aluminum Leg Subdweller Monowheel > --- UTILITY ---------- Disposable Heat Sink Visual Processing Unit > --- WEAPON ----------- Medium Laser Heavy Assault Rifle > --- INVENTORY -------- Subdweller Monowheel Huge Storage Unit Medium Laser Rocket Launcher [Rating: 12] Favorites ----------- Power Ion Engine Engine Ion Engine Propulsion Aluminum Leg Leg Aluminum Leg Wheel Subdweller Monowheel Utility Visual Processing Unit Device Disposable Heat Sink Processor Visual Processing Unit Weapon Heavy Assault Rifle Energy Gun Medium Laser Ballistic Gun Heavy Assault Rifle Launcher Rocket Launcher Slashing Weapon Mining Claw Build | -11 -10 -10 -10 ------- Run | Yrd Mat Min Sub Slots Evolved . | . . . . Power . | . . . . Propulsion . | . . . . Utility . | . . . . Weapon . | . . . . Parts Attached 18 | 5 4 . 9 Power 3 | 1 . . 2 Engine 3 | 1 . . 2 Core . | . . . . Reactor . | . . . . Propulsion 4 | 2 . . 2 Treads . | . . . . Leg 2 | 2 . . . Wheel 2 | . . . 2 Hover . | . . . . Flight . | . . . . Utility 2 | . 1 . 1 Device 1 | . . . 1 Storage . | . . . . Processor 1 | . 1 . . Hackware . | . . . . Protection . | . . . . Artifact . | . . . . Weapon 9 | 2 3 . 4 Energy Gun 3 | . . . 3 Energy Cannon . | . . . . Ballistic Gun 4 | 2 2 . . Ballistic Cannon . | . . . . Launcher 1 | . . . 1 Special Weapon . | . . . . Impact Weapon . | . . . . Slashing Weapon 1 | . 1 . . Piercing Weapon . | . . . . Special Melee Weapon . | . . . . Unidentified Prototypes . | . . . . Parts Lost 8 | . . 2 6 Power 2 | . . . 2 Propulsion 2 | . . 1 1 Utility . | . . . . Weapon 4 | . . 1 3 Highest Loss Streak 5 | . . 2 5 To Critical Strikes . | . . . . Average Backups 4 | . 4 4 4 Power . | . . . . Propulsion 1 | . 1 1 1 Utility . | . . 1 1 Weapon 2 | . 2 2 2 Tool/Special . | . . . . Unused Backups 2 | . . . 2 Power . | . . . . Propulsion 1 | . . . 1 Utility 1 | . . . 1 Weapon . | . . . . Tool/Special . | . . . . Average Slot Usage (%) 85 | . 79 80 90 Engine 13 | . 14 14 13 Leg 19 | . 28 25 14 Wheel 6 | . . . 11 Device 6 | . . . 11 Processor 12 | . 8 14 14 Energy Gun 8 | . . . 14 Ballistic Gun 17 | . 27 25 9 Peak Build Rating 12 | 5 9 9 12 Average Rating 9 | 3 7 8 10 On Entrance 5 | . 5 9 6 Avg Prop Armor Cover (%) 8 | . . . 8 Naked Turns . | . . . . Heaviest Build 12 | 7 11 11 12 Greatest Support 20 | 20 20 20 20 Greatest Overweight (x) 1 | . . . 1 Average Overweight (x) . | . . . . Largest Inventory Capacity 5 | 5 5 5 5 Average Capacity 5 | 5 5 5 5 Most Carried 5 | 1 5 5 5 Average Carried 4 | . 4 4 4 Final Capacity 5 | 5 5 5 5 Final Carried 5 | 1 5 5 3 Class Distribution -------------------- 85% | Mutant 14% | Scavenger-Mutant Dominant Class ---------------- Mutant | -10/Materials Mutant | -10/Mines Mutant | -10/Subcaves Resources | -11 -10 -10 -10 ----------- Run | Yrd Mat Min Sub Matter Collected 413 | 237 63 . 113 Remotely . | . . . . Salvage Created 304 | . . 4 300 Parts 17 | . . . 17 Haulers Intercepted . | . . . . Recyclers Shooed . | . . . . Parts Field Recycled . | . . . . Retrieved Matter . | . . . . Parts Self-Destructed 13 | . . . 13 Prevented . | . . . . Parts Restored . | . . . . Kills | -11 -10 -10 -10 ------- Run | Yrd Mat Min Sub Combat Hostiles Destroyed 9 | . . 1 8 Guns 8 | . . 1 7 AOE 1 | . . . 1 Classes Destroyed 3 | . . 1 2 Sentry 1 | . . . 1 Demolisher 1 | . . 1 . Subdweller 7 | . . . 7 Best Kill Streak 2 | . . 1 2 Combat Bots Only 2 | . . 1 2 Max Kills in Single Turn 1 | . . 1 1 Gunslinging . | . . . . Exploded 1 | . . . 1 Melee . | . . . . Uniques/NPCs Destroyed . | . . . . Combat | -11 -10 -10 -10 -------- Run | Yrd Mat Min Sub Hostile Shots Fired 49 | . . 12 37 Missed 15 | . . 1 14 Hits 34 | . . 11 23 Melee 2 | . . 2 . Projectile 32 | . . 9 23 AOE 10 | . . 10 . Critical Strikes 2 | . . . 2 Damage Taken 1066 | . . 480 586 Core 250 | . . 110 140 Absorbed by Shields . | . . . . Core Remaining (%) 100 | 100 . . . Volleys Fired 34 | . . 6 28 Largest 2 | . . 2 2 Hottest 110 | . . 46 110 Shots Fired 56 | . . 11 45 Gun 51 | . . 11 40 Cannon . | . . . . Launcher 5 | . . . 5 Special . | . . . . Kinetic 17 | . . 11 6 Thermal 34 | . . . 34 Explosive 5 | . . . 5 Electromagnetic . | . . . . Robot Hit Streak 17 | . . 5 17 Robot Miss Streak 3 | . . 3 2 Penetration Max . | . . . . Secondary Targets 1 | . . 1 . Max Gunslinging Chain 1 | . . 1 . Shots Hit Robots 45 | . . 6 39 Core Hits 18 | . . 3 15 Critical Kills . | . . . . Critical Parts Destroyed . | . . . . Critical Strikes 2 | . . . 2 Burn 2 | . . . 2 Melee Attacks 4 | . 4 . . Impact . | . . . . Slashing 4 | . 4 . . Piercing . | . . . . Sneak Attacks . | . . . . Combat Hostiles . | . . . . Follow-up Attacks . | . . . . Damage Inflicted 799 | . . 104 695 Guns 613 | . . 104 509 Cannons . | . . . . Explosions 186 | . . . 186 Melee . | . . . . Ramming . | . . . . Kinetic 182 | . . 104 78 Thermal 431 | . . . 431 Explosive 186 | . . . 186 Electromagnetic . | . . . . Impact . | . . . . Slashing . | . . . . Piercing . | . . . . Highest Corruption . | . . . . Average Corruption . | . . . . Corruption Purged . | . . . . Corruption Blocked . | . . . . Overload Shots . | . . . . Overflow Damage 2 | . . . 2 Projectiles . | . . . . Explosions 2 | . . . 2 Melee . | . . . . Knockbacks . | . . . . Impact . | . . . . Kinetic . | . . . . Secondary . | . . . . Self-Inflicted Damage 44 | . . . 44 Shots 4 | . . . 4 Rammed . | . . . . Targets Rammed . | . . . . Kicked . | . . . . Crushed . | . . . . Highest Temperature 5 | . . . 5 Average Temperature 2 | . . . 2 Received Heat Transfer 48 | . . . 48 Siege Activations . | . . . . Martial Activations . | . . . . Shielding Activations . | . . . . Robots Disrupted . | . . . . Combat Hostiles . | . . . . Robots Corrupted . | . . . . Combat Hostiles . | . . . . Parts Fried . | . . . . Impact Corruptions . | . . . . Robots Melted . | . . . . Combat Hostiles . | . . . . Parts Melted . | . . . . Heat Transferred 1125 | . . . 1125 Parts Sabotaged . | . . . . Parts Stolen . | . . . . Parts Stripped . | . . . . Power Chain Reactions . | . . . . Alert | -11 -10 -10 -10 ------- Run | Yrd Mat Min Sub Maximum Alert Level . | . . . . Low Security (%) 100 | 100 100 100 . Level 1 . | . . . . Level 2 . | . . . . Level 3 . | . . . . Level 4 . | . . . . Level 5 . | . . . . High Security . | . . . . Max Security . | . . . . Peak Influence 30 | . 14 30 . Initial . | . . . . Average . | . . 1 . Influence Increases 65 | . 15 30 20 Destroy 0b10 Robot/C 40 | . . 20 20 Destroy Leader 10 | . . 10 . Successful Hack 14 | . 14 . . Destroy Structure 1 | . 1 . . Influence Decreases 65 | . 15 30 20 Time Decay 45 | . 15 10 20 Lost Part 20 | . . 20 . Squads Dispatched . | . . . . Investigation . | . . . . Extermination . | . . . . Reinforcement . | . . . . Assault . | . . . . Garrison . | . . . . Intercept . | . . . . Searches Triggered . | . . . . Construction Impeded . | . . . . Haulers Reinforced . | . . . . Active Scanning Responses . | . . . . Cargo Convoy Interrupts . | . . . . Stealth | -11 -10 -10 -10 --------- Run | Yrd Mat Min Sub Distress Signals . | . . . . Communications Jammed . | . . . . Distress Signals . | . . . . Times Spotted 13 | . 2 3 8 Peak Tracking Total 3 | . 2 2 3 Tactical Retreats . | . . . . Traps | -11 -10 -10 -10 ------- Run | Yrd Mat Min Sub Traps Triggered 1 | . . . 1 Indirectly . | . . . . Trap Hack Attempts . | . . . . Triggered . | . . . . Disarmed . | . . . . Reprogrammed . | . . . . Reused . | . . . . Traps Extracted . | . . . . Installed . | . . . . Triggered . | . . . . Machines | -11 -10 -10 -10 ---------- Run | Yrd Mat Min Sub Machines Disabled . | . . . . Max in Single Turn . | . . . . Machines Repaired . | . . . . Machines Dismantled . | . . . . Machines Sabotaged . | . . . . Overloaded Fab Kills . | . . . . Hacking | -11 -10 -10 -10 --------- Run | Yrd Mat Min Sub Machines Accessed 2 | . 2 . . Terminals 2 | . 2 . . Fabricators . | . . . . Repair Stations . | . . . . Recycling Units . | . . . . Scanalyzers . | . . . . Garrison Access . | . . . . Total Hacks 2 | . 2 . . Successful 2 | . 2 . . Failed . | . . . . Catastrophic . | . . . . Database Lockouts . | . . . . Manual 2 | . 2 . . Terminals 2 | . 2 . . Fabricators . | . . . . Repair Stations . | . . . . Recycling Units . | . . . . Scanalyzers . | . . . . Garrison Access . | . . . . Terminal Hacks . | . . . . Fabricator Hacks . | . . . . Repair Station Hacks . | . . . . Recycling Unit Hacks . | . . . . Scanalyzer . | . . . . Garrison Access Hacks . | . . . . Unauthorized Hacks 2 | . 2 . . Terminals 2 | . 2 . . Assimilate 1 | . 1 . . Botnet 1 | . 1 . . Fabricators . | . . . . Repair Stations . | . . . . Recycling Units . | . . . . Scanalyzers . | . . . . Garrison Access . | . . . . Data Cores Recovered . | . . . . Used . | . . . . Hacking Detections . | . . . . Full Trace Events . | . . . . Feedback Events . | . . . . Feedback Blocked . | . . . . Robot Schematics Acquired . | . . . . Robots Built . | . . . . Authchips . | . . . . Time . | . . . . Total Robot Build Rating . | . . . . Part Schematics Acquired . | . . . . Parts Built . | . . . . Authchips . | . . . . Time . | . . . . Total Part Build Rating . | . . . . Part Studies Acquired . | . . . . Parts Repaired . | . . . . Time . | . . . . Parts Recycled . | . . . . Recycled Matter . | . . . . Retrieved Matter . | . . . . Retrieved Components . | . . . . Parts Scanalyzed . | . . . . Part Schematics Acquired . | . . . . Parts Damaged . | . . . . Bothacking | -11 -10 -10 -10 ------------ Run | Yrd Mat Min Sub Used RIF Installer . | . . . . Robots Hacked . | . . . . Non-combat . | . . . . Combat . | . . . . Robot Hacks Applied . | . . . . Relay Couplers Released . | . . . . Fabnet Peak Effective % . | . . . . Robots Rewired . | . . . . Allies Hacked . | . . . . Hacks Repelled . | . . . . Allies | -11 -10 -10 -10 -------- Run | Yrd Mat Min Sub Total Allies . | . . . . Largest Group . | . . . . Highest-Rated Group . | . . . . Highest-Rated Ally . | . . . . Total Orders . | . . . . Ally Attacks . | . . . . Total Damage . | . . . . Kills . | . . . . Allies Corrupted . | . . . . Allies Melted . | . . . . Intel | -11 -10 -10 -10 ------- Run | Yrd Mat Min Sub Active Infowar (turns) 1154 | . 240 175 739 Optics 1154 | . 240 175 739 Robot Analysis Total . | . . . . Derelict Logs Recovered . | . . . . Drone Launches . | . . . . Drone Recoveries . | . . . . Exploration | -11 -10 -10 -10 ------------- Run | Yrd Mat Min Sub Turns Passed 1337 | 56 367 175 739 Spaces Moved 905 | 43 284 127 451 Core 5 | 5 . . . Treads . | . . . . Legs 702 | 38 284 127 253 Wheels 198 | . . . 198 Hover . | . . . . Flight . | . . . . Fastest Speed 50 | 50 120 120 110 Average Speed 128 | 111 120 120 138 Slowest Speed 190 | 120 120 120 190 Overloaded Moves . | . . . . Propulsion Burnouts . | . . . . Robots Hopped . | . . . . Potential Cave-ins . | . . . . Cave-ins Triggered . | . . . . Exploration Rate (%) 29 | 4 46 37 31 Regions Visited 3 Branch Regions 2 Pre-discovered Areas . | . . . . Known Exits Taken . | . . . . Unknown Exits Taken 3 | 1 1 1 . Scrap Searched 1 | . . 1 . Spaces Dug 1 | . 1 . . Terrain Destroyed 22 | . 1 . 21 Melee 1 | . 1 . . Projectile . | . . . . AOE 21 | . . . 21 Terrain Rammed . | . . . . Walls Destroyed . | . . . . Machines Disabled . | . . . . Actions | -11 -10 -10 -10 --------- Run | Yrd Mat Min Sub Total 1008 | 48 300 139 521 Wait 35 | . 2 5 28 Move 902 | 42 283 126 451 Hop . | . . . . Pick Up 8 | 1 4 1 2 Fast Attach 11 | 5 3 . 3 Attach 4 | . . . 4 Detach . | . . . . Swap 4 | . 2 . 2 Drop 6 | . 2 1 3 Fire 34 | . . 6 28 Melee 4 | . 4 . . Ram . | . . . . Kick . | . . . . Crush . | . . . . Escape Stasis . | . . . . Rewire . | . . . . Trap . | . . . . Miscellaneous . | . . . . Route ------- -11/Scrapyard -10/Materials (discovered 3 exits: [*Mat x2] / [*Min]) -10/Mines -10/Subcaves (discovered 2 exits: [*Mat x2]) History --------- Turn | Location | Event 9 | -11/Scrapyard | Discovered new exit (range 16) 57 | -11/Scrapyard | Entered Materials 88 | -10/Materials | Discovered new exit (range 15) 144 | -10/Materials | Discovered new exit (range 12) 305 | -10/Materials | Discovered new exit (range 9) 306 | -10/Materials | Build established: Mutant 424 | -10/Materials | Entered Mines 491 | -10/Mines | Received a Rocket Launcher from a helpful Derelict 504 | -10/Mines | Assembled infested the area 531 | -10/Mines | Found a Scrap Suit stashed away for nefarious purposes 593 | -10/Mines | Discovered new exit (range 6) 599 | -10/Mines | Entered Subcaves 599 | -10/Subcaves | Discovered new exit (range 12) 603 | -10/Subcaves | Discovered new exit (range 14) 612 | -10/Subcaves | Shifting Twisted Machinery released Sub. Beam Cannon 615 | -10/Subcaves | Shifting Twisted Machinery released Battle Rifle 670 | -10/Subcaves | A swath of the cavern ceiling suddenly collapsed 1254 | -10/Subcaves | A Subdweller sparked back to life 1254 | -10/Subcaves | A Subdweller sparked back to life 1254 | -10/Subcaves | A Subdweller sparked back to life 1259 | -10/Subcaves | Core integrity fell below 50% 1323 | -10/Subcaves | Core integrity fell below 20% 1338 | -10/Subcaves | Destroyed self with Rocket Launcher Last Messages --------------- Subatomizers dissect the Sub. Monowheel. TN-RIV(R) creaks and sparks as it begins to move. CK-9XP(R) creaks and sparks as it begins to move. OQ-453(R) creaks and sparks as it begins to move. TN-RIV(R) affixes Scrap Shield Fragment to Scrap Shield. TN-RIV(R) destroyed. OQ-453(R) suffers critical hit (Burn). Med. Laser destroyed. Sub. Laser destroyed. CK-9XP(R) destroyed. Sub. Power Source destroyed. Acquired 5 matter. Med. Laser destroyed. Aluminum Leg destroyed. Destroyed Aluminum Leg. OQ-453(R) destroyed. Map ----- +----------------------------------------------------+ | ?????????????????????????????????????????????????? | | ?????????????????????????????????????????????????? | | #????????????????????????????????????????????????? | | #????????????????????????????????????????????????? | | #????????????????????????????????????????????????? | | #????????????????????????????????????????????????? | | ##???????????????????????????????????????????????? | | ##??????????????????????????????????????????????? | | #??????????????????????????????????????????????? | | ##?##???????????????##??????????????????????????? | | #### #?#######?????? ##########????????????????? | | ### ?## "## #?????## " ##! ####?????????????? | | ?# ###""" #####?# " =%!% ###???????????? | | ##""##" "# ### " ##! #??? #??????? | | "#"" "" ### < "### ## #??????? | | "" "" #? < ##### #??????? | | ### ## ### ## ## #??????? | | ##### ##?##"##^ ## #??????? | | #???######???### # #??????? | | #??????????????## # ## #??????? | | #???????????????## & ### #??????? | | #????????????????## &% ## #?????? | | #?????????????????### ] #?# #?????? | | #???????????????????# ### ^ #?????? | | #?????????????????#### ##?????? | | ##????????????????# @ ####??????? | | #????????????????## #######?????????? | | #????????????????## ## ###???????????????? | | #??????????????### ##?## ##?????????????????? | | #??????????????# ###????##??????????????????? | | #??????????????# [##?###??????????????????????? | | #?????????????## *& #?## ##?????????????????????? | | ##?????????????# &%#### #?????????????????????? | | #??????????????# =*! ## ##????????????????????? | | ???????????????# & #????????????????????? | | ???????????????## ^ #????????????????????? | | ????????????????## ## #????????????????????? | | ?????????????????## ### ###????????????????????? | | ?????????????????## ### #?????????????????????? | | ????????????????## #?????????????????????? | | ????????????????# | ##?????????????????????? | | #???????????????# %# #??????????????????????? | | #???????????????## ####??????????????????????? | | #????????????????## #?????????????????????????? | | #?????????????????## ##?????????????????????????? | | #?????????????????# #???????####??????????????? | | ??????????????????# ##?????? #??????????????? | | ??????????????????# #???#### #???????????????? | | ???????????######### #??## #???????#????????? | | ??????????## #### ## ?????????? | +----------------------------------------------------+ Best States ------------- Heat Dissipation 25 Coolant Potential 50 Energy Generation 15 Energy Capacity 250 Matter Stores 300 Matter Capacity 300 Sight Range 18 Terrain Scan Density 10 Evasion (%) 55 Item Schematics ----------------- None Robot Schematics ------------------ None Fabricated ------------ Nothing Repaired ---------- Nothing Studied --------- None Alien Tech Used ----------------- None Achievements -------------- None Challenges ------------ None Game ------ Seed WaveMakeshiftCape Manual? 0 Play Time 00:10:14 Cumulative 76.0 hours Start 2026.08.11 @ 20:51:24 End 2026.08.11 @ 21:00:54 Sessions 1 Manual Loads 0 Difficulty Rogue Special Mode None Game No. 85 Rogue 85 Adventurer 0 Explorer 0 Win Type - Total 1 Types 1/0/0/0/0/0/0/0/0/0 Lore% 68 Gallery% 48 Achievement% 43 Wizard Run 0 Options --------- Layout 1 ASCII 0 Keyboard 0 Movement Mouse Keybinds 0 Fullscreen 1 Font 24/X11 Map View 50x35 Zoom Use 0% Tactical HUD 0 Map Filters NONE Filters NONE Steam 1 RUN: a268f96f-8aa3-432a-a1a0-0c81750e2d8d